bitfinex-derivatives/quotes_ETHF0:USTF0_20251117
["timestamp","ask_amount","ask_price","bid_price","bid_amount"]
[1763371237333,3.5124,3209.0,3208.7,0.51584612]
[1763371237842,3.21138964,3209.0,3208.9,0.4815]
[1763371238540,0.00358964,3209.0,3208.9,0.4815]
[1763371240837,0.78788964,3209.0,3208.7,0.03434612]
[1763371242337,0.4797,3208.8,3208.7,0.03434612]
[1763371242540,0.30818964,3209.0,3208.7,0.51584612]
[1763371242844,0.30818964,3209.0,3208.9,0.4815]
[1763371243446,0.00358964,3209.0,3208.9,3.6893]
[1763371243742,0.4797,3208.8,3208.7,0.51584612]
[1763371243940,0.30818964,3209.0,3208.7,0.51584612]
[1763371244448,0.4797,3208.8,3208.7,0.51584612]
[1763371246248,0.4797,3208.8,3208.7,0.03434612]
[1763371246846,0.4797,3208.8,3208.7,0.51584612]
[1763371247141,0.30818964,3209.0,3208.7,0.51584612]
[1763371247345,0.4797,3208.8,3208.7,0.03434612]
[1763371247847,3.51598964,3209.0,3208.9,0.4815]
[1763371248149,3.99568964,3209.0,3208.9,0.4815]
[1763371248643,0.00358964,3209.0,3208.9,0.4815]
[1763371248845,3.2078,3209.4,3209.3,0.5278]
[1763371249437,0.0046737,3209.7,3209.6,0.5278]
[1763371249841,0.00803843,3209.7,3209.6,0.5278]
[1763371250336,0.50753843,3209.7,3209.6,0.5278]
[1763371251348,0.4995,3209.2,3209.0,1.65490485]
[1763371251538,0.3009,3209.5,3208.9,4.86270485]
[1763371251539,0.8004,3209.0,3208.9,4.86270485]
[1763371251745,0.4995,3208.9,3208.7,0.03434612]
[1763371251944,0.3009,3209.0,3208.8,0.5278]
[1763371252353,0.3009,3209.0,3208.9,0.5278]
[1763371252853,0.8004,3209.0,3208.9,0.5278]
[1763371253353,0.4995,3208.9,3208.8,1.65490485]
[1763371253555,0.4995,3208.9,3208.7,1.68925097]
[1763371254248,0.4995,3208.9,3208.8,2.18270485]
[1763371254554,0.4995,3208.9,3208.8,1.65490485]
[1763371257151,0.4995,3208.8,3208.7,0.03434612]
[1763371257352,0.3009,3209.0,3208.7,0.56214612]
[1763371257657,0.8004,3209.0,3208.9,2.18789579]
[1763371258250,0.8004,3209.0,3208.9,1.66009579]
[1763371258448,0.4995,3208.8,3208.7,1.69444191]
[1763371259153,0.4995,3208.8,3208.7,0.03434612]
[1763371259957,0.4995,3208.8,3208.7,1.14199337]
[1763371260256,3.7073,3208.8,3208.7,1.14199337]
[1763371260452,3.7073,3208.8,3208.7,0.03434612]
[1763371260860,4.21258,3208.8,3208.7,0.03434612]
[1763371261156,4.21258,3208.8,3208.7,4.612e-05]
[1763371262156,3.7073,3208.8,3208.7,4.612e-05]
[1763371262360,4.21258,3208.8,3208.7,4.612e-05]
[1763371263458,3.7073,3208.8,3208.7,4.612e-05]
[1763371263762,4.21258,3208.8,3208.7,4.612e-05]
[1763371264251,3.7073,3208.8,3208.7,4.612e-05]
[1763371264658,3.7073,3208.8,3208.7,0.52784612]
[1763371264961,3.2078,3208.8,3208.7,0.52784612]
[1763371265356,3.7073,3208.8,3208.7,0.52784612]
[1763371265556,3.7073,3208.8,3208.7,4.612e-05]
[1763371268060,3.7073,3208.8,3208.7,0.52784612]
[1763371268563,3.2078,3209.3,3208.7,1.63549337]
[1763371268763,3.2078,3209.3,3208.8,1.10764725]
[1763371269662,0.4995,3208.9,3208.8,1.10764725]
[1763371270561,0.4995,3208.9,3208.8,1.63544725]
[1763371271067,0.4995,3208.9,3208.8,1.10764725]
[1763371271555,0.3009,3209.0,3208.9,0.5278]
[1763371271758,0.8004,3209.0,3208.9,0.5278]
[1763371272356,3.2078,3209.3,3209.2,0.5278]
[1763371272966,3.7073,3209.3,3208.9,1.10764725]
[1763371274369,0.8004,3209.0,3208.9,1.10764725]
[1763371275060,0.8004,3209.0,3208.9,1.63544725]
[1763371275257,0.8004,3209.0,3208.9,1.10764725]
[1763371275460,0.4995,3208.9,3208.8,1.10764725]
[1763371275971,0.4995,3208.8,3208.7,1.10769337]
[1763371277557,3.71307,3208.9,3208.7,4.612e-05]
[1763371278164,3.2078,3208.9,3208.7,4.612e-05]
[1763371279969,0.50528,3208.8,3208.7,4.612e-05]
[1763371280161,3.2078,3208.9,3208.7,4.612e-05]
[1763371280363,3.71306,3208.9,3208.7,4.612e-05]
[1763371280964,3.2078,3208.9,3208.7,4.612e-05]
[1763371281166,3.71306,3208.9,3208.7,4.612e-05]
[1763371282671,0.4803,3208.9,3208.7,4.612e-05]
[1763371284071,3.71307,3208.9,3208.7,4.612e-05]
[1763371284272,0.50528,3208.8,3208.7,4.612e-05]
[1763371285577,3.2078,3208.9,3208.7,4.612e-05]
[1763371285872,3.71307,3208.9,3208.7,4.612e-05]
[1763371287473,0.50528,3208.8,3208.7,4.612e-05]
[1763371287772,3.71308,3208.9,3208.7,4.612e-05]
[1763371288377,3.2078,3208.9,3208.7,4.612e-05]
[1763371288980,3.71307,3208.9,3208.7,4.612e-05]
[1763371289176,3.2078,3208.9,3208.7,4.612e-05]
[1763371291580,3.71307,3208.9,3208.7,4.612e-05]
[1763371292280,3.2078,3208.9,3208.7,4.612e-05]
[1763371292480,0.3009,3209.0,3208.8,0.4854]
[1763371292690,0.7812,3209.0,3208.9,0.4854]
[1763371292978,1.28645,3209.0,3208.7,4.612e-05]
[1763371293176,0.7812,3209.0,3208.7,4.612e-05]
[1763371293572,0.7812,3209.0,3208.9,0.4854]
[1763371294078,0.7812,3209.0,3208.9,1.59298768]
[1763371294283,0.7812,3209.0,3208.9,1.10758768]
[1763371294779,0.7812,3209.0,3208.9,1.59298768]
[1763371295572,3.2078,3209.3,3208.9,1.59298768]
[1763371296583,3.6881,3209.3,3209.2,0.4854]
[1763371297080,0.4803,3209.1,3209.0,1.59298768]
[1763371300383,0.4803,3209.1,3209.0,0.4854]
[1763371300583,0.7579,3209.0,3208.9,1.10758768]
[1763371300782,0.4803,3208.9,3208.8,1.10758768]
[1763371301679,0.4803,3208.9,3208.7,4.612e-05]
[1763371301680,0.4803,3208.9,3208.7,1.66142765]
[1763371301985,0.4803,3208.8,3208.7,2.14682765]
[1763371305487,3.2078,3209.1,3209.0,0.4217]
[1763371305686,3.6339,3209.1,3209.0,1.52905867]
[1763371306483,0.6718,3209.0,3208.9,1.10735867]
[1763371307983,0.6718,3209.0,3208.9,0.4217]
[1763371309084,0.6718,3209.0,3208.9,1.52905314]
[1763371309288,0.6718,3209.0,3208.9,0.4217]
[1763371310184,0.6782,3209.0,3208.9,0.4217]
[1763371311388,0.6782,3209.0,3208.9,1.52917724]
[1763371311778,3.2078,3209.1,3209.0,0.4255]
[1763371311980,3.6403,3209.1,3209.0,1.10749264]
[1763371312184,0.4325,3208.9,3208.8,1.10749264]
[1763371312487,0.4325,3208.8,3208.7,1.10753876]
[1763371313086,0.93778,3208.8,3208.7,1.10753876]
[1763371313281,0.50528,3208.8,3208.7,4.612e-05]
[1763371315184,0.50527,3208.9,3208.7,4.612e-05]
[1763371315387,0.2469,3209.0,3208.7,4.612e-05]
[1763371315589,0.50528,3208.9,3208.7,4.612e-05]
[1763371315983,0.50527,3208.9,3208.7,4.612e-05]
[1763371316484,0.2469,3209.0,3208.7,4.612e-05]
[1763371316989,0.6436,3209.0,3208.9,0.4037]
[1763371317688,0.6436,3209.0,3208.7,4.612e-05]
[1763371320186,0.6436,3209.0,3208.9,0.4037]
[1763371320490,0.6436,3209.0,3208.9,1.51119264]
[1763371320692,3.2078,3209.1,3209.0,0.4037]
[1763371320882,3.2078,3209.1,3209.0,1.51119264]
[1763371321391,3.6045,3209.1,3209.0,1.10749264]
[1763371321792,3.6045,3209.1,3209.0,1.51119264]
[1763371322295,3.2078,3209.1,3209.0,1.51119264]
[1763371322490,3.5087,3209.5,3209.4,0.3834]
[1763371323002,3.9141,3209.5,3209.4,0.3834]
[1763371323495,0.00803843,3209.7,3209.6,0.3834]
[1763371324192,0.00803843,3209.7,3209.6,1.49038551]
[1763371324391,0.2489,3210.5,3210.2,0.3834]
[1763371324688,0.2489,3210.5,3210.2,1.1054056]
[1763371324689,3.6132,3210.3,3210.2,1.1054056]
[1763371324891,0.4054,3210.1,3210.0,1.1054056]
[1763371325284,0.4054,3210.1,3210.0,1.48763795]
[1763371325487,0.00367851,3210.1,3210.0,1.48763795]
[1763371325996,0.40907851,3210.1,3210.0,1.48763795]
[1763371326389,0.40907851,3210.1,3210.0,0.3834]
[1763371327594,0.4054,3209.8,3209.7,0.0046737]
[1763371328399,0.4054,3209.8,3209.7,0.3880737]
[1763371328800,3.2078,3209.9,3209.8,0.3834]
[1763371328997,3.6132,3209.9,3209.8,0.3834]
[1763371329301,0.4054,3209.8,3209.7,0.0046737]
[1763371331300,3.2078,3209.9,3209.8,0.3834]
[1763371331498,0.4054,3209.8,3209.7,0.0046737]
[1763371331900,0.4054,3209.8,3209.7,0.3880737]
[1763371332200,0.4054,3209.8,3209.7,0.0046737]
[1763371335607,0.4054,3209.8,3209.7,0.3880737]
[1763371337308,3.6057,3209.9,3209.8,0.3927]
[1763371337605,0.3818,3209.8,3209.7,0.3787737]
[1763371339402,3.2078,3209.9,3209.8,0.3741]
[1763371340002,3.6101,3209.9,3209.8,0.3741]
[1763371341413,0.00367851,3210.1,3210.0,0.3779]
[1763371342314,0.3978737,3210.4,3209.7,4.31671165]
[1763371342608,0.6195,3210.0,3209.9,0.3779]
[1763371342908,0.0046737,3210.4,3209.9,0.3779]
[1763371343407,0.00844575,3210.4,3209.9,0.3779]
[1763371344601,0.51347575,3210.4,3209.9,0.3779]
[1763371344910,0.6587,3210.0,3209.9,0.3779]
[1763371345209,0.00844575,3210.4,3209.9,0.3779]
[1763371345504,0.4134,3210.4,3210.3,0.4216]
[1763371345707,0.4134,3210.4,3210.2,3.2078]
[1763371345708,0.4134,3210.3,3210.2,3.6294]
[1763371346206,0.6587,3210.5,3210.4,0.4216]
[1763371346409,0.66097669,3210.5,3210.4,0.4216]
[1763371348204,0.66097669,3210.5,3210.2,3.6294]
[1763371348205,0.4134,3210.3,3210.2,3.6294]
[1763371350209,0.24757669,3210.5,3210.4,0.4216]
[1763371350415,0.00227669,3210.5,3210.4,0.4216]
[1763371353102,0.66097669,3210.5,3210.4,0.4216]
[1763371353805,0.00227669,3210.5,3210.4,0.4216]
[1763371354007,0.0046737,3210.8,3210.7,0.4216]
[1763371354206,0.0046737,3210.8,3210.7,3.6294]
[1763371354717,0.4180737,3210.8,3210.7,4.73379083]
[1763371354917,0.4180737,3210.8,3210.7,3.6294]
[1763371355117,0.42166705,3210.8,3210.7,3.6294]
[1763371355418,0.00826705,3210.8,3210.7,3.6294]
[1763371356521,0.91843,3210.4,3210.3,3.2078]
[1763371356712,0.2453,3210.5,3209.9,3.2078]
[1763371356713,1.16379,3210.0,3209.9,3.2078]
[1763371356910,0.4134,3209.8,3209.7,0.0046737]
[1763371357411,0.2453,3210.0,3209.9,0.3963]
[1763371357719,3.6186,3210.2,3209.7,0.0046737]
[1763371358111,3.6186,3210.2,3210.1,0.3963]
[1763371358515,4.12366,3210.2,3209.7,0.0046737]
[1763371358713,0.4108,3209.8,3209.7,0.0046737]
[1763371360822,0.91592,3209.8,3209.7,0.0046737]
[1763371361124,0.4108,3209.8,3209.7,0.0046737]
[1763371364924,0.4108,3209.8,3209.7,0.4009737]
[1763371365119,0.6503,3210.0,3209.9,0.3963]
[1763371365531,0.4108,3209.8,3209.7,0.4009737]
[1763371366023,0.4108,3209.8,3209.7,0.0046737]
[1763371374028,0.3801,3210.2,3210.1,0.3954]
[1763371374227,0.3801,3209.8,3209.7,0.0046737]
[1763371386236,0.3801,3209.8,3209.7,1.10906453]
[1763371387038,0.3801,3209.8,3209.7,0.0046737]
[1763371387539,0.3801,3209.8,3209.7,0.3716737]
[1763371389441,0.3801,3209.8,3209.7,0.0046737]
[1763371390040,0.3801,3209.8,3209.7,1.11181488]
[1763371392340,0.3801,3209.8,3208.5,0.1644]
[1763371392341,0.50514,3209.7,3208.7,5.77862149]
[1763371392643,0.3587,3209.2,3209.1,0.3556]
[1763371392843,0.71073426,3209.5,3209.1,0.3556]
[1763371393049,3.2078,3209.8,3209.1,0.3556]
[1763371393238,0.71073868,3209.7,3209.1,3.5680737]
[1763371393844,0.3587,3209.2,3209.1,3.5680737]
[1763371396450,1.21338356,3209.7,3209.1,3.5680737]
[1763371396654,0.70823356,3209.6,3209.1,3.5680737]
[1763371396953,0.50514,3209.7,3209.1,3.5680737]
[1763371397153,0.7081301,3209.6,3209.1,3.5680737]
[1763371397356,0.7341,3210.0,3209.5,0.5869]
[1763371397554,0.70800771,3209.9,3209.5,0.5869]
[1763371397755,0.3819,3209.6,3209.5,0.5869]
[1763371400562,0.3701,3208.9,3208.8,1.6603287]
[1763371400746,0.50528,3208.8,3208.7,4.612e-05]
[1763371400951,1.62595941,3208.8,3208.7,4.612e-05]
[1763371401255,1.21315663,3208.8,3208.7,4.612e-05]
[1763371403558,7.21315663,3208.8,3208.7,4.612e-05]
[1763371405251,6.50528,3208.8,3208.7,4.612e-05]
[1763371407264,7.22158467,3208.8,3208.7,4.612e-05]
[1763371407465,6.50528,3208.8,3208.7,4.612e-05]
[1763371407964,10.3373959,3208.8,3208.7,4.612e-05]
[1763371408458,7.2213959,3208.8,3208.7,4.612e-05]
[1763371409257,1.2213959,3208.8,3208.7,4.612e-05]
[1763371409453,0.50528,3208.8,3208.7,4.612e-05]
[1763371415862,1.22090813,3208.8,3208.7,4.612e-05]
[1763371416563,0.50528,3208.8,3208.7,4.612e-05]
[1763371417260,1.22403576,3208.8,3208.7,4.612e-05]
[1763371417955,4.43183576,3208.8,3208.7,4.612e-05]
[1763371418861,4.43183576,3208.8,3207.2,3.2078]
[1763371418862,0.162,3208.0,3207.2,3.2078]
[1763371419055,0.1226,3207.5,3206.7,3.2078]
[1763371419257,0.87916,3206.4,3206.3,3.2078]
[1763371419459,0.87916,3206.4,3206.0,0.2182]
[1763371419460,0.5056,3206.8,3206.5,0.5761]
[1763371419665,0.8791,3206.8,3206.7,0.3579]
[1763371419862,0.8791,3206.8,3206.7,0.36034139]
[1763371420072,0.88248549,3206.8,3206.7,0.00244139]
[1763371421564,0.37688549,3206.8,3206.7,0.00244139]
[1763371421866,0.37688549,3206.8,3206.7,0.36034139]
[1763371422258,0.37688549,3206.8,3206.7,0.00244139]
[1763371422458,0.88247549,3206.8,3206.7,0.00244139]
[1763371422862,0.00338549,3206.8,3206.7,0.36034139]
[1763371423463,0.00338549,3206.8,3206.7,9.56814139]
[1763371425470,0.37688549,3206.8,3206.7,3.56814139]
[1763371425864,0.00338549,3206.8,3206.7,3.56814139]
[1763371427877,0.37688549,3206.8,3206.7,3.56814139]
[1763371429471,0.88247549,3206.8,3206.7,3.21024139]
[1763371429662,0.88247549,3206.8,3206.7,0.00244139]
[1763371430774,0.37688549,3206.8,3206.7,0.37354139]
[1763371431572,0.88247549,3206.8,3206.7,0.00244139]
[1763371433278,0.00338549,3206.8,3206.7,0.37354139]
[1763371437480,0.35238549,3206.8,3206.7,0.37354139]
[1763371437678,0.85797549,3206.8,3206.7,0.00244139]
[1763371439975,0.85797549,3206.8,3206.7,0.37354139]
[1763371440478,0.35238549,3206.8,3206.7,0.00244139]
[1763371440677,0.00338549,3206.8,3206.7,0.37354139]
[1763371441276,0.00338549,3206.8,3206.7,3.58134139]
[1763371441880,0.72400719,3207.4,3207.3,0.3711]
[1763371442072,0.0046737,3207.4,3207.3,0.3711]
[1763371442281,1.68071092,3208.4,3207.3,0.3711]
[1763371442282,3.2078,3208.3,3207.3,6.3711]
[1763371442478,3.5568,3208.3,3208.2,0.3711]
[1763371442676,4.27619926,3208.3,3208.2,0.3711]
[1763371442982,3.55948674,3208.3,3208.2,0.3711]
[1763371443374,3.21048674,3208.3,3208.2,0.3711]
[1763371443685,3.55948674,3208.3,3208.2,0.3711]
[1763371444785,4.06484674,3208.3,3208.2,0.3711]
[1763371444981,4.06484674,3208.3,3208.0,0.208]
[1763371445387,0.349,3208.1,3208.0,0.208]
[1763371445585,0.349,3208.1,3208.0,0.5791]
[1763371445787,0.00268674,3208.3,3208.2,0.3711]
[1763371446483,0.349,3208.1,3208.0,3.7869]
[1763371447687,0.50804674,3208.3,3208.0,3.7869]
[1763371448388,0.977,3208.0,3207.9,0.0046737]
[1763371448884,1.69761978,3208.0,3207.9,0.0046737]
[1763371449792,0.8544,3208.0,3207.9,0.3757737]
[1763371449989,1.57500468,3208.0,3207.9,0.0046737]
[1763371450989,1.69760468,3208.0,3207.9,0.0046737]
[1763371453486,1.57500468,3208.0,3207.9,0.3757737]
[1763371453685,1.57500468,3208.0,3207.9,0.0046737]
[1763371455793,1.57500468,3208.0,3207.9,0.3757737]
[1763371456089,1.06963667,3208.0,3207.9,0.3757737]
[1763371456294,0.5054,3208.0,3207.9,0.0046737]
[1763371456497,0.5054,3208.0,3207.9,0.3757737]
[1763371456794,0.8544,3208.0,3207.9,0.0046737]
[1763371457387,0.977,3208.0,3207.9,0.0046737]
[1763371458495,0.8544,3208.0,3207.9,0.0046737]
[1763371462403,1.57549485,3208.0,3207.9,0.0046737]
[1763371465103,1.57549485,3208.0,3207.9,0.3077737]
[1763371466206,1.57549485,3208.0,3207.9,0.0046737]
[1763371467010,1.57549485,3208.0,3207.9,0.3077737]
[1763371468197,0.8121,3208.1,3207.9,0.0046737]
[1763371468396,1.02874716,3208.0,3207.9,0.0046737]
[1763371469202,1.53414716,3208.0,3207.9,0.0046737]
[1763371474507,0.3067,3207.3,3207.2,3.5109]
[1763371475301,1.11606506,3208.0,3207.2,3.5109]
[1763371475512,0.50545,3207.8,3207.2,3.5109]
[1763371475712,1.2287443,3207.7,3207.2,3.5109]
[1763371476009,1.5354643,3207.6,3207.5,0.4931]
[1763371476415,1.5354643,3207.6,3207.5,0.19]
[1763371476910,0.3067,3207.3,3207.2,3.2078]
[1763371477111,0.3067,3207.3,3207.2,3.5109]
[1763371479314,0.7232943,3207.4,3207.3,0.3031]
[1763371479613,0.81215,3207.7,3207.6,0.3031]
[1763371480113,0.81212,3207.9,3207.8,0.3031]
[1763371480317,1.53691733,3207.9,3207.8,0.3031]
[1763371482216,4.74471733,3207.9,3207.8,0.3031]
[1763371482415,4.74471733,3207.9,3207.5,0.19]
[1763371482614,1.23024733,3207.8,3207.5,0.19]
[1763371482818,1.53694733,3207.7,3207.6,0.3031]
[1763371483513,1.03149733,3207.7,3207.6,0.3031]
[1763371484319,1.53694733,3207.7,3207.6,0.3031]
[1763371484521,0.3067,3207.6,3207.5,0.4931]
[1763371484720,1.03149733,3207.6,3207.5,0.4931]
[1763371484912,0.3067,3207.6,3207.5,0.4931]
[1763371485525,1.03149733,3207.6,3207.5,0.4931]
[1763371486331,0.72479733,3207.6,3207.5,0.4931]
[1763371486519,0.81214,3207.8,3207.7,0.3031]
[1763371486720,1.53680626,3207.8,3207.7,0.3031]
[1763371486925,0.3067,3207.6,3207.5,0.4931]
[1763371487417,1.03136626,3207.6,3207.5,0.4931]
[1763371487825,0.3067,3207.6,3207.5,0.4931]
[1763371488428,1.03136626,3207.6,3207.5,0.4931]
[1763371490629,0.3067,3207.6,3207.5,0.4931]
[1763371490830,1.53101626,3207.7,3207.6,0.3266]
[1763371491034,1.02556626,3207.7,3207.6,0.3266]
[1763371491933,0.72466626,3207.7,3207.6,0.3266]
[1763371493434,0.3009,3207.6,3207.5,0.19]
[1763371493735,0.3009,3207.6,3207.5,0.5166]
[1763371494040,0.72466626,3207.7,3207.6,0.3266]
[1763371494540,3.2078,3207.9,3207.8,0.3266]
[1763371494739,3.93243293,3207.9,3207.8,0.3266]
[1763371495239,4.73875293,3207.9,3207.5,3.3978]
[1763371495538,0.3009,3207.6,3207.5,3.7244]
[1763371495732,0.3009,3207.6,3207.5,3.3978]
[1763371495930,0.3009,3207.6,3207.5,0.19]
[1763371496337,1.02553293,3207.6,3207.5,0.19]
[1763371496539,0.3009,3207.6,3207.5,0.5166]
[1763371497133,1.02542647,3207.6,3207.5,0.5166]
[1763371497535,0.3009,3207.6,3207.5,0.5166]
[1763371498045,0.80637,3207.6,3207.5,0.5166]
[1763371498338,1.53089647,3207.6,3207.5,0.5166]
[1763371499042,1.53089647,3207.6,3207.0,3.4158]
[1763371499043,0.3009,3207.1,3207.0,3.4158]
[1763371499238,0.3009,3207.1,3207.0,3.7424]
[1763371502442,0.0671,3207.2,3207.1,0.3266]
[1763371502838,0.57263,3207.2,3207.1,0.3266]
[1763371503042,0.57264,3207.1,3207.0,3.4158]
[1763371503231,1.30510056,3207.1,3207.0,3.2078]
[1763371503543,0.73246056,3207.1,3207.0,3.7111]
[1763371503743,0.73246056,3207.1,3207.0,3.3845]
[1763371503937,4.32386506,3207.5,3207.2,0.3266]
[1763371504142,0.73233032,3207.4,3207.3,0.3266]
[1763371504742,1.30493032,3207.4,3207.3,0.3266]
[1763371505041,0.57263,3207.2,3207.1,0.3266]
[1763371505238,0.79928838,3207.2,3207.1,0.3266]
[1763371505837,1.30481838,3207.2,3207.1,0.3266]
[1763371507145,0.79928838,3207.2,3207.1,0.3266]
[1763371507344,1.30481838,3207.2,3207.1,0.3266]
[1763371507737,0.79928838,3207.2,3207.1,0.3266]
[1763371507931,0.79928838,3207.2,3207.0,3.3845]
[1763371507932,0.57261,3207.3,3207.2,0.3266]
[1763371508133,1.30174262,3207.3,3207.2,0.3266]
[1763371511646,0.72913262,3207.3,3207.2,0.3266]
[1763371511946,3.78039,3207.5,3207.4,0.3266]
[1763371512246,4.50922888,3207.5,3207.4,0.3266]
[1763371512449,0.72884888,3207.5,3207.4,0.3266]
[1763371512744,0.57255,3207.8,3207.7,0.3266]
[1763371512944,1.30117502,3207.8,3207.7,0.3266]
[1763371513338,1.23407502,3207.8,3207.7,0.3266]
[1763371513945,1.23405502,3207.8,3207.7,0.3266]
[1763371514453,0.72862502,3207.8,3207.7,0.3266]
[1763371515053,0.79572502,3207.8,3207.7,0.3266]
[1763371515750,0.72862502,3207.8,3207.7,0.3266]
[1763371516151,1.23405502,3207.8,3207.7,0.3266]
[1763371517151,0.72862502,3207.8,3207.7,0.3266]
[1763371517554,3.2078,3207.9,3207.8,0.3266]
[1763371517755,3.9363639,3207.9,3207.8,0.3266]
[1763371517957,4.4442839,3207.9,3207.5,0.1767]
[1763371518151,3.2103,3207.9,3207.5,0.1767]
[1763371518560,0.0025,3207.9,3207.8,0.2687]
[1763371518860,0.73100315,3207.9,3207.8,0.2687]
[1763371519653,0.0025,3207.9,3207.8,0.2687]
[1763371520161,0.73100315,3207.9,3207.8,0.2687]
[1763371520658,1.23642315,3207.9,3207.8,0.2687]
[1763371521562,0.73100315,3207.9,3207.8,0.2687]
[1763371522363,1.23642315,3207.9,3207.8,0.2687]
[1763371524262,0.73100315,3207.9,3207.8,0.2687]
[1763371524865,0.0025,3207.9,3207.8,0.2687]
[1763371525367,0.50541,3208.0,3207.9,0.2701]
[1763371525663,1.23356372,3208.0,3207.9,0.2701]
[1763371526666,0.72816372,3208.0,3207.9,0.2701]
[1763371526862,3.2078,3208.2,3208.1,0.2701]
[1763371527061,3.9359031,3208.2,3208.1,0.2701]
[1763371528269,4.4412731,3208.2,3208.1,0.2701]
[1763371529066,4.4412731,3208.2,3208.0,0.1553]
[1763371529264,3.71317,3208.2,3208.0,0.1553]
[1763371529768,3.71317,3208.2,3208.1,0.2701]
[1763371529968,0.50539,3208.1,3208.0,0.1553]
[1763371531772,0.50539,3208.1,3208.0,0.4254]
[1763371531970,3.71318,3208.2,3208.0,0.4254]
[1763371534176,0.50539,3208.1,3208.0,0.1553]
[1763371535473,0.50539,3208.1,3208.0,0.4254]
[1763371537173,1.23330058,3208.1,3208.0,0.4254]
[1763371539978,1.23330058,3208.1,3208.0,0.1553]
[1763371540370,0.50544,3208.0,3207.5,3.3845]
[1763371540977,0.50539,3208.1,3208.0,0.1553]
[1763371541177,1.23383058,3208.1,3208.0,0.1553]
[1763371543679,0.50547,3207.7,3207.5,0.1767]
[1763371544384,0.50547,3207.7,3207.5,0.4468]
[1763371545183,0.50547,3207.7,3207.5,0.1767]
[1763371546182,0.50547,3207.7,3207.5,0.4468]
[1763371546983,0.50547,3207.7,3207.6,0.2701]
[1763371547185,1.23479659,3207.7,3207.6,0.2701]
[1763371547485,1.23479659,3207.7,3207.5,0.1767]
[1763371547679,0.50547,3207.7,3207.5,0.1767]
[1763371547982,0.72940706,3207.6,3207.5,0.1767]
[1763371548187,0.72940706,3207.6,3207.5,0.4468]
[1763371550380,0.50544,3207.8,3207.7,0.2373]
[1763371550771,1.23472803,3207.8,3207.7,0.2373]
[1763371553886,1.23472803,3207.8,3207.5,0.1767]
[1763371554074,0.72929803,3207.7,3207.6,0.2373]
[1763371554886,0.50538,3208.2,3208.0,0.1361]
[1763371555076,1.2345136,3208.1,3208.0,0.1361]
[1763371556988,0.50542,3207.9,3207.5,0.414]
[1763371557188,0.7291236,3207.8,3207.5,0.414]
[1763371557982,0.7291236,3207.8,3207.7,0.2373]
[1763371562396,0.7291236,3207.8,3207.5,0.1767]
[1763371562397,0.50804674,3208.3,3208.2,0.2373]
[1763371562594,1.23724206,3208.3,3208.2,0.2373]
[1763371563282,0.73188206,3208.3,3208.2,0.2373]
[1763371563986,0.73188206,3208.3,3208.0,0.1361]
[1763371564294,0.73188206,3208.3,3208.2,0.2373]
[1763371565387,1.23724206,3208.3,3208.0,0.1361]
[1763371565589,0.72919532,3208.2,3208.1,0.2373]
[1763371566695,1.23456532,3208.2,3208.1,0.2373]
[1763371567201,0.72919532,3208.2,3208.1,0.2373]
[1763371568198,0.72919532,3208.2,3208.0,0.3734]
[1763371569000,1.23456532,3208.2,3208.0,0.3734]
[1763371569197,0.72919532,3208.1,3208.0,0.3734]
[1763371574799,1.23458532,3208.1,3208.0,0.3734]
[1763371575002,1.23458532,3208.1,3208.0,0.1361]
[1763371576310,7.84526038,3208.1,3207.1,1.6603287]
[1763371576505,0.50552,3207.3,3207.0,3.3845]
[1763371576811,3.2078,3207.8,3207.0,3.3845]
[1763371576812,0.50548,3207.5,3207.0,3.3845]
[1763371577015,1.23408287,3207.4,3207.0,3.3845]
[1763371577207,0.5055,3207.4,3207.0,3.3845]
[1763371578112,0.50549,3207.5,3207.0,3.3845]
[1763371579606,3.2078,3207.8,3207.0,3.3845]
[1763371579909,0.50553,3207.3,3207.2,0.2384]
[1763371580109,1.23378683,3207.3,3207.2,0.2384]
[1763371581417,0.72825683,3207.3,3207.2,0.2384]
[1763371583716,1.23376683,3207.3,3207.2,0.2384]
[1763371584118,0.50551,3207.3,3207.2,0.2384]
[1763371587514,3.7133,3207.5,3207.2,0.2384]
[1763371587714,1.23260352,3207.4,3207.2,0.2384]
[1763371587914,0.50551,3207.4,3207.2,0.2384]
[1763371588518,3.71329,3207.5,3207.3,0.2384]
[1763371589022,0.50551,3207.4,3207.3,0.2384]
[1763371592433,3.2078,3207.5,3207.4,0.2384]
[1763371592724,3.71321,3208.0,3207.9,0.2384]
[1763371594119,0.50544,3207.8,3207.7,0.2384]
[1763371594823,0.50544,3207.8,3207.5,0.1441]
[1763371596025,3.2078,3208.0,3207.5,0.3825]
[1763371596233,0.50547,3207.6,3207.5,0.1441]
[1763371596424,3.71327,3207.6,3207.5,0.1441]
[1763371596825,4.4427105,3207.6,3207.5,0.1441]
[1763371597932,3.71327,3207.6,3207.5,0.1441]
[1763371599331,4.44297021,3207.6,3207.5,0.1441]
[1763371602420,0.50554,3207.1,3207.0,0.4151]
[1763371602631,1.11606506,3208.0,3206.7,1.66277009]
[1763371602632,0.50559,3206.8,3206.7,0.00244139]
[1763371602932,1.23571632,3206.8,3206.7,0.00244139]
[1763371604341,4.44351632,3206.8,3206.7,0.00244139]
[1763371611841,3.2078,3206.8,3206.7,0.22744139]
[1763371615630,3.2078,3206.8,3206.7,0.00244139]
[1763371615830,3.2078,3206.8,3206.7,0.22744139]
[1763371616743,0.50558,3206.9,3206.7,0.22744139]
[1763371619640,0.50559,3206.8,3206.7,0.00244139]
[1763371621450,0.50558,3206.9,3206.7,0.00244139]
[1763371621840,0.50559,3206.8,3206.7,0.00244139]
[1763371622642,0.50558,3206.9,3206.8,0.225]
[1763371623745,3.2078,3207.0,3206.9,0.225]
[1763371629652,3.71332,3207.3,3207.0,0.1467]
[1763371630355,0.729343,3207.2,3207.0,0.1467]
[1763371630651,0.50554,3207.1,3206.7,0.00244139]
[1763371630847,0.50559,3206.8,3206.7,0.00244139]
[1763371631151,1.23499271,3206.8,3206.7,0.00244139]
[1763371633156,9.84780272,3206.8,3205.5,0.3691]
[1763371633353,3.2078,3205.7,3205.5,0.1441]
[1763371633653,0.50571,3206.1,3206.0,0.1467]
[1763371633859,1.23530341,3206.1,3206.0,0.1467]